[Event "DMP-III LIGA Senior PK 2020"]
[Site "Bystre"]
[Date "2020.07.09"]
[Round "2.19"]
[White "Lopuszanski, Kamil"]
[Black "Piekarski, Lukasz"]
[Result "1-0"]
[ECO "E91"]
[WhiteElo "1995"]
[BlackElo "1901"]
[Annotator "ChessBase"]
[PlyCount "67"]
[EventDate "2020.07.05"]
[EventType "team-tourn"]
[EventCountry "POL"]
[SourceTitle "playchess.com"]
[Source "ChessBase"]
[SourceQuality "1"]
[TimeControl "5400+30"]

1. d4 {[%emt 0:00:32]} Nf6 {[%emt 0:01:48]} 2. c4 {[%emt 0:01:04]} g6 {[%emt 0:00:07]} 3. Nf3 {[%emt 0:00:05]} Bg7 {[%emt 0:00:06]} 4. Nc3 {[%emt 0:00:05]} O-O {[%emt 0:00:15]} 5. e4 {[%emt 0:00:06]} d6 {[%emt 0:00:04]} 6. Be2 {[%emt 0:00:05]} Na6 {[%emt 0:00:01]} 7. h3 {[%emt 0:02:26]} e5 {[%emt 0:13:02]} 8. dxe5 {[%emt 0:05:15]} dxe5 {[%emt 0:00:57]} 9. Be3 {[%emt 0:01:05]} Nd7 {[%emt 0:18:52]} 10. Qc2 {[%emt 0:10:34]} c6 {[%emt 0:17:46]} 11. O-O-O {[%emt 0:00:31]} Qe7 {[%emt 0:01:10]} 12. a3 {[%emt 0:08:12]} Nc7 {[%emt 0:01:21]} 13. g4 {[%emt 0:05:17]} a6 {[%emt 0:18:11]} 14. c5 {[%emt 0:10:01]} Nxc5 {[%emt 0:11:54]} 15. Nd5 {[%emt 0:00:42]} Nb3+ {[%emt 0:00:05]} 16. Qxb3 {[%emt 0:00:14]} cxd5 {[%emt 0:00:04]} 17. exd5 {[%emt 0:00:56]} Qd7 {[%emt 0:08:24]} 18. Bb6 {[%emt 0:05:10]} e4 {[%emt 0:04:02]} 19. Nd4 {[%emt 0:07:20]} Be5 {[%emt 0:00:37]} 20. Bc4 {[%emt 0:02:25]} Ne8 {[%emt 0:00:23]} 21. Rhe1 {[%emt 0:03:38]} Nd6 {[%emt 0:00:09]} 22. Bf1 {[%emt 0:02:06]} Re8 {[%emt 0:00:06]} 23. Bg2 {[%emt 0:01:31]} Qe7 {[%emt 0:00:37]} 24. Kb1 {[%emt 0:01:02]} f5 {[%emt 0:00:56]} 25. gxf5 {[%emt 0:03:41]} gxf5 {[%emt 0:00:11]} 26. f3 {[%emt 0:00:59]} Kh8 {[%emt 0:00:32]} 27. Nc2 {[%emt 0:06:59]} Qf6 {[%emt 0:00:39]} 28. fxe4 {[%emt 0:01:28]} fxe4 {[%emt 0:00:25]} 29. Bxe4 {[%emt 0:01:44]} Nb5 {[%emt 0:00:08]} 30. Bc5 {[%emt 0:03:34]} b6 {[%emt 0:00:53]} 31. d6 {[%emt 0:01:46]} Be6 {[%emt 0:00:17]} 32. Qf3 {[%emt 0:01:28]} Rab8 {[%emt 0:01:26]} 33. Qh5 {[%emt 0:02:04]} Qg7 {[%emt 0:00:28]} 34. Rg1 {[%emt 0:00:20]} 1-0

[Event "DMP-III LIGA Senior PK 2020"]
[Site "Bystre"]
[Date "2020.07.09"]
[Round "2.20"]
[White "Pasionek, Ariel"]
[Black "Mazurkiewicz, Andrzej"]
[Result "1-0"]
[ECO "B01"]
[WhiteElo "1914"]
[BlackElo "1608"]
[Annotator "ChessBase"]
[PlyCount "130"]
[EventDate "2020.07.05"]
[EventType "team-tourn"]
[EventCountry "POL"]
[SourceTitle "playchess.com"]
[Source "ChessBase"]
[SourceQuality "1"]
[TimeControl "5400+30"]

1. e4 d5 {[%emt 0:01:45]} 2. Nf3 {[%emt 0:00:00]} dxe4 {[%emt 0:01:33]} 3. Ng5 {[%emt 0:00:00]} Nf6 {[%emt 0:02:43]} 4. Bc4 {[%emt 0:01:21]} e6 {[%emt 0:01:18]} 5. Nc3 {[%emt 0:00:56]} b6 {[%emt 0:05:07]} 6. Ngxe4 {[%emt 0:17:44]} Bb7 {[%emt 0:01:14]} 7. d3 {[%emt 0:21:16]} h6 {[%emt 0:00:40]} 8. O-O {[%emt 0:16:19]} Nbd7 {[%emt 0:06:02]} 9. Bf4 {[%emt 0:03:46]} a6 {[%emt 0:00:41]} 10. Re1 {[%emt 0:11:46]} Be7 {[%emt 0:05:34]} 11. Qf3 {[%emt 0:04:25]} Qc8 {[%emt 0:02:46]} 12. Qh3 {[%emt 0:03:27]} b5 {[%emt 0:02:48]} 13. Bb3 {[%emt 0:00:26]} b4 {[%emt 0:01:53]} 14. Nb1 {[%emt 0:10:50]} Nxe4 {[%emt 0:04:33]} 15. dxe4 {[%emt 0:00:02]} Nc5 {[%emt 0:00:56]} 16. Nd2 {[%emt 0:01:59]} Nxb3 {[%emt 0:01:06]} 17. axb3 {[%emt 0:00:07]} O-O {[%emt 0:01:27]} 18. Qg3 {[%emt 0:00:24]} Kh7 {[%emt 0:01:40]} 19. Bxc7 {[%emt 0:01:32]} Bf6 {[%emt 0:02:36]} 20. Nc4 {[%emt 0:00:34]} Bd4 {[%emt 0:02:42]} 21. Be5 {[%emt 0:00:31]} Bxe5 22. Qxe5 Qb8 {[%emt 0:07:26]} 23. Qxb8 {[%emt 0:00:14]} Raxb8 {[%emt 0:02:17]} 24. f3 {[%emt 0:00:13]} Rfd8 {[%emt 0:02:10]} 25. Red1 {[%emt 0:00:22]} Rxd1+ {[%emt 0:03:57]} 26. Rxd1 {[%emt 0:00:01]} Bc6 {[%emt 0:00:28]} 27. Rd2 {[%emt 0:02:19]} f5 {[%emt 0:01:37]} 28. Rd6 {[%emt 0:01:08]} Bb5 {[%emt 0:00:41]} 29. Rxe6 {[%emt 0:00:27]} fxe4 {[%emt 0:00:41]} 30. Rxe4 {[%emt 0:00:11]} Rd8 {[%emt 0:00:44]} 31. Kf2 {[%emt 0:00:42]} Rd1 {[%emt 0:01:07]} 32. Ne3 {[%emt 0:02:04]} Rd2+ {[%emt 0:02:39]} 33. Kg3 {[%emt 0:00:05]} Re2 {[%emt 0:01:24]} 34. Kf4 {[%emt 0:00:18]} Bc6 {[%emt 0:03:50]} 35. Re7 {[%emt 0:00:14]} Bb5 {[%emt 0:01:41]} 36. h4 {[%emt 0:00:52]} Rf2 {[%emt 0:02:40]} 37. Re4 {[%emt 0:00:59]} Re2 {[%emt 0:00:44]} 38. h5 {[%emt 0:00:37]} Rf2 {[%emt 0:03:30]} 39. Rxb4 {[%emt 0:00:28]} Be8 {[%emt 0:01:10]} 40. Rb6 {[%emt 0:00:31]} Bxh5 {[%emt 0:00:51]} 41. Rxa6 {[%emt 0:00:27]} g5+ {[%emt 0:03:28]} 42. Ke5 {[%emt 0:00:49]} Re2 {[%emt 0:01:45]} 43. Kd4 {[%emt 0:00:09]} Bg6 {[%emt 0:02:47]} 44. Ra7+ {[%emt 0:00:44]} Kg8 {[%emt 0:00:18]} 45. Ng4 {[%emt 0:00:37]} Rxc2 {[%emt 0:02:43]} 46. Nxh6+ {[%emt 0:00:14]} Kf8 {[%emt 0:01:52]} 47. Ra5 {[%emt 0:00:16]} Rxg2 {[%emt 0:00:47]} 48. Ng4 {[%emt 0:00:19]} Rd2+ {[%emt 0:05:05]} 49. Ke5 {[%emt 0:01:00]} Rxb2 {[%emt 0:02:01]} 50. Kf6 {[%emt 0:00:13]} Rxb3 {[%emt 0:02:22]} 51. Ra8+ {[%emt 0:00:49]} Be8 {[%emt 0:00:14]} 52. Ne5 {[%emt 0:00:01]} Rb6+ {[%emt 0:00:58]} 53. Kxg5 {[%emt 0:00:08]} Ke7 {[%emt 0:00:41]} 54. f4 {[%emt 0:00:27]} Rb1 {[%emt 0:01:09]} 55. Kf5 {[%emt 0:01:12]} Bd7+ {[%emt 0:00:20]} 56. Nxd7 {[%emt 0:00:09]} Kxd7 {[%emt 0:00:27]} 57. Kf6 {[%emt 0:00:02]} Rb6+ {[%emt 0:01:05]} 58. Kf7 {[%emt 0:01:02]} Rb5 {[%emt 0:00:53]} 59. Ra4 {[%emt 0:00:44]} Kd6 {[%emt 0:00:41]} 60. Rd4+ {[%emt 0:00:25]} Kc5 61. Rd1 {[%emt 0:00:29]} Kc4 {[%emt 0:01:02]} 62. Kg6 {[%emt 0:00:15]} Rb6+ {[%emt 0:00:50]} 63. Kg5 {[%emt 0:00:08]} Rb2 {[%emt 0:00:27]} 64. f5 {[%emt 0:00:09]} Rg2+ {[%emt 0:00:27]} 65. Kf6 {[%emt 0:00:06]} Kc5 1-0

[Event "DMP-III LIGA Senior PK 2020"]
[Site "Bystre"]
[Date "2020.07.09"]
[Round "2.21"]
[White "Chowaniec, Artur"]
[Black "Samek, Ryszard"]
[Result "1/2-1/2"]
[ECO "C47"]
[WhiteElo "1530"]
[BlackElo "1993"]
[Annotator "ChessBase"]
[PlyCount "36"]
[EventDate "2020.07.05"]
[EventType "team-tourn"]
[EventCountry "POL"]
[SourceTitle "playchess.com"]
[Source "ChessBase"]
[SourceQuality "1"]
[TimeControl "5400+30"]

1. e4 {[%emt 0:09:33]} e5 {[%emt 0:00:20]} 2. Nc3 {[%emt 0:00:04]} Nf6 {[%emt 0:00:37]} 3. Nf3 {[%emt 0:00:07]} Nc6 {[%emt 0:01:28]} 4. d4 {[%emt 0:00:56]} exd4 {[%emt 0:00:41]} 5. Nxd4 {[%emt 0:00:09]} Bb4 {[%emt 0:08:25]} 6. Nxc6 {[%emt 0:01:17]} bxc6 {[%emt 0:01:17]} 7. Bd3 {[%emt 0:00:13]} d5 {[%emt 0:02:18]} 8. exd5 {[%emt 0:00:16]} cxd5 {[%emt 0:10:38]} 9. O-O {[%emt 0:00:16]} O-O {[%emt 0:01:19]} 10. Bg5 {[%emt 0:00:09]} Bxc3 {[%emt 0:14:05]} 11. bxc3 {[%emt 0:01:35]} h6 {[%emt 0:01:17]} 12. Bh4 {[%emt 0:00:55]} Qd6 {[%emt 0:07:13]} 13. c4 {[%emt 0:01:08]} dxc4 {[%emt 0:13:06]} 14. Bxc4 {[%emt 0:00:20]} Qf4 {[%emt 0:00:48]} 15. Bxf6 {[%emt 0:01:39]} Qxf6 {[%emt 0:04:16]} 16. Re1 {[%emt 0:03:26]} Bf5 {[%emt 0:02:45]} 17. Qe2 {[%emt 0:45:58]} Qc6 {[%emt 0:23:08]} 18. Bd3 {[%emt 0:03:39]} Rae8 1/2-1/2

[Event "DMP-III LIGA Senior PK 2020"]
[Site "Bystre"]
[Date "2020.07.09"]
[Round "2.22"]
[White "Wojciechowski, Beniamin"]
[Black "Wrobel, Dariusz"]
[Result "1-0"]
[ECO "C31"]
[WhiteElo "1835"]
[BlackElo "1427"]
[Annotator "NA"]
[PlyCount "112"]
[EventDate "2020.07.05"]
[EventType "team-tourn"]
[EventCountry "POL"]
[SourceTitle "playchess.com"]
[Source "ChessBase"]
[SourceQuality "1"]
[TimeControl "5400+30"]

1. e4 e5 2. f4 d5 3. exd5 Qxd5 4. Nc3 Qe6 5. fxe5 Qxe5+ 6. Qe2 {C31: Falkbeer Counter Gambit: 3 exd5 c6 and 3...e4 sidelines..} Qxe2+ 7. Bxe2 c6 8. Nf3 Nf6 9. O-O Bd6 10. Bc4 O-O {[#]} 11. d4 $146 ({Predecessor:} 11. d3 a5 12. a4 Be6 13. Bxe6 fxe6 14. Ng5 Re8 15. Nge4 Be5 16. Rb1 Nd5 17. Ne2 Nd7 18. Bd2 b6 19. d4 {½-½ (19) Hintz,B-Hauck,B Hamburg 1999}) 11... Bf5 12. Bb3 Nbd7 13. Bg5 Bg6 14. Rae1 Rfe8 15. Nh4 Rxe1 16. Rxe1 Re8 17. Rxe8+ Nxe8 18. Nxg6 hxg6 19. Ne4 Bc7 20. Be7 Bf4 21. Ng5 Bxg5 22. Bxg5 Nef6 23. Kf1 Kf8 24. Ke2 Ne4 25. Bd8 Nd6 26. Kd3 Ke8 27. Bg5 f6 28. Bd2 c5 29. Bd5 cxd4 30. Kxd4 Nf5+ 31. Kc3 b6 32. g4 Ne7 33. Bf3 Ne5 34. Be2 Kd7 35. b4 Kd6 36. a4 Nd5+ $11 37. Kb2 Nc6 38. Ka3 g5 39. c4 Nf4 40. Bd1 Nd4 41. Be3 Ke5 42. Bf2 Ke4 43. h4 gxh4 44. Bxh4 g5 45. Bf2 Kd3 46. c5 bxc5 47. Bxd4 Kxd4 48. b5 Nd5 49. a5 c4 50. Bf3 Nc3 51. Kb4 Na2+ 52. Ka3 Nc3 53. Kb4 Nd5+ 54. Bxd5 Kxd5 55. b6 axb6 56. a6 Kc6 1-0

[Event "DMP-III LIGA Senior PK 2020"]
[Site "Bystre"]
[Date "2020.07.09"]
[Round "2.23"]
[White "Kielb, Miroslaw"]
[Black "Borukalo, Zdzislaw"]
[Result "1/2-1/2"]
[ECO "B32"]
[WhiteElo "1394"]
[BlackElo "1679"]
[Annotator "NA"]
[PlyCount "65"]
[EventDate "2020.07.05"]
[EventType "team-tourn"]
[EventCountry "POL"]
[SourceTitle "playchess.com"]
[Source "ChessBase"]
[SourceQuality "1"]
[TimeControl "5400+30"]

1. e4 {[%emt 0:00:00]} c5 {[%emt 0:00:00]} 2. Nf3 {[%emt 0:00:06]} Nc6 {[%emt 0:00:00]} 3. d4 {[%emt 0:00:26]} cxd4 {[%emt 0:00:00]} 4. Nxd4 {[%emt 0:00:10]} e5 {[%emt 0:00:00]} 5. Nb5 {[%emt 0:05:20]} d6 {[%emt 0:00:01]} 6. N1c3 {[%emt 0:04:40]} a6 {[%emt 0:00:12]} 7. Na3 {[%emt 0:00:30]} b5 {[%emt 0:00:16]} 8. Nd5 {[%emt 0:00:32]} Nf6 {[%emt 0:00:19]} 9. Bg5 {[%emt 0:04:53]} Be7 {[%emt 0:00:21]} 10. Bxf6 {[%emt 0:02:07]} Bxf6 {[%emt 0:00:08]} 11. Bd3 {[%emt 0:03:39]} Bg5 {[%emt 0:11:21]} 12. O-O {[%emt 0:00:59]} O-O {[%emt 0:02:44]} 13. c3 {[%emt 0:04:09]} g6 {[%emt 0:06:11]} 14. f4 {[%emt 0:02:22]} exf4 {[%emt 0:04:33]} 15. Nxf4 {[%emt 0:00:31]} Ne5 {[%emt 0:17:18]} 16. Nd5 {[%emt 0:02:15]} Be6 {[%emt 0:08:23]} 17. Nc2 {[%emt 0:03:47]} Bxd5 {[%emt 0:28:36]} 18. exd5 {[%emt 0:00:24]} Qd7 {[%emt 0:05:15]} 19. h3 {[%emt 0:06:11]} h5 {[%emt 0:03:39]} 20. Nd4 {[%emt 0:01:28]} Be3+ {[%emt 0:00:43]} 21. Kh1 {[%emt 0:00:22]} Bxd4 {[%emt 0:00:41]} 22. cxd4 {[%emt 0:00:10]} Nxd3 {[%emt 0:00:47]} 23. Qxd3 {[%emt 0:00:07]} Ra7 {[%emt 0:04:15]} 24. Rf6 {[%emt 0:10:40]} Kg7 {[%emt 0:02:50]} 25. Raf1 {[%emt 0:01:05]} a5 {[%emt 0:02:22]} 26. Qg3 {[%emt 0:01:19]} Ra6 {[%emt 0:00:33]} 27. Qg5 {[%emt 0:03:46]} Raa8 {[%emt 0:00:55]} 28. R1f4 {[%emt 0:04:13]} Rac8 {[%emt 0:01:02]} 29. Rh4 {[%emt 0:01:58]} Rh8 {[%emt 0:00:32]} 30. Rhf4 {[%emt 0:01:28]} Rhf8 {[%emt 0:00:28]} 31. Rh4 {[%emt 0:05:16]} Rh8 {[%emt 0:00:06]} 32. Rhf4 {[%emt 0:02:33]} Rhf8 {[%emt 0:00:06]} 33. Rf2 1/2-1/2

[Event "DMP-III LIGA Senior PK 2020"]
[Site "Bystre"]
[Date "2020.07.09"]
[Round "2.24"]
[White "Krzysztynska, Anna"]
[Black "Wolak, Julia"]
[Result "1-0"]
[ECO "B22"]
[WhiteElo "1857"]
[BlackElo "1516"]
[Annotator "NA"]
[PlyCount "69"]
[EventDate "2020.07.05"]
[EventType "team-tourn"]
[EventCountry "POL"]
[SourceTitle "playchess.com"]
[Source "ChessBase"]
[SourceQuality "1"]
[TimeControl "5400+30"]

1. e4 {[%emt 0:00:00]} c5 {[%emt 0:00:00]} 2. c3 {[%emt 0:00:00]} g6 {[%emt 0:00:24]} 3. d4 {[%emt 0:00:43]} cxd4 {[%emt 0:00:45]} 4. cxd4 {[%emt 0:00:09]} d6 {[%emt 0:03:32]} 5. Nc3 {[%emt 0:01:40]} Bg7 {[%emt 0:03:09]} 6. Bc4 {[%emt 0:01:09]} Nf6 {[%emt 0:01:07]} 7. Nge2 {[%emt 0:03:48]} Nc6 {[%emt 0:05:40]} 8. Bb3 {[%emt 0:01:50]} Bg4 {[%emt 0:01:51]} 9. Be3 {[%emt 0:02:15]} a6 {[%emt 0:06:56]} 10. h3 {[%emt 0:03:34]} Bd7 {[%emt 0:02:08]} 11. O-O {[%emt 0:01:08]} O-O {[%emt 0:06:08]} 12. f4 {[%emt 0:04:06]} Na5 {[%emt 0:01:27]} 13. Bc2 {[%emt 0:08:52]} Nc4 {[%emt 0:01:10]} 14. Bc1 {[%emt 0:02:10]} b5 {[%emt 0:05:08]} 15. e5 {[%emt 0:07:37]} Ne8 {[%emt 0:03:47]} 16. Be4 {[%emt 0:04:55]} Rb8 {[%emt 0:00:20]} 17. b3 $11 {[%emt 0:04:19]} Nb6 {[%emt 0:06:11]} 18. Be3 {[%emt 0:06:18]} b4 {[%emt 0:06:55]} 19. Nd5 {[%emt 0:08:38]} Nxd5 {[%emt 0:00:36]} 20. Bxd5 {[%emt 0:00:06]} e6 {[%emt 0:04:26]} 21. Bc4 {[%emt 0:03:21]} Qb6 {[%emt 0:01:57]} 22. Qd2 {[%emt 0:04:40]} d5 {[%emt 0:00:48]} 23. Bd3 {[%emt 0:00:09]} Nc7 {[%emt 0:15:35]} 24. g4 {[%emt 0:02:12]} a5 {[%emt 0:04:18]} 25. f5 {[%emt 0:03:36]} Rfc8 {[%emt 0:00:21]} 26. f6 {[%emt 0:00:43]} Bh8 {[%emt 0:02:05]} 27. h4 {[%emt 0:03:59]} Bb5 {[%emt 0:02:15]} 28. Bc2 {[%emt 0:04:08]} Bxe2 {[%emt 0:00:43]} 29. Qxe2 {[%emt 0:00:06]} Nb5 {[%emt 0:00:08]} 30. Bd3 {[%emt 0:00:35]} Rc3 {[%emt 0:01:52]} 31. Bxb5 {[%emt 0:00:53]} Qxb5 {[%emt 0:00:25]} 32. Qxb5 {[%emt 0:00:08]} Rxb5 {[%emt 0:00:04]} 33. Rac1 {[%emt 0:00:27]} Rbc5 {[%emt 0:01:05]} 34. dxc5 {[%emt 0:00:21]} Rxe3 {[%emt 0:00:09]} 35. c6 {[%emt 0:01:13]} 1-0

[Event "DMP-III LIGA Senior PK 2020"]
[Site "Bystre"]
[Date "2020.07.09"]
[Round "2.25"]
[White "Lorenc, Marian"]
[Black "Marut, Leszek"]
[Result "1/2-1/2"]
[ECO "B01"]
[WhiteElo "2124"]
[BlackElo "1863"]
[Annotator "ChessBase"]
[PlyCount "68"]
[EventDate "2020.07.05"]
[EventType "team-tourn"]
[EventCountry "POL"]
[SourceTitle "playchess.com"]
[Source "ChessBase"]
[SourceQuality "1"]
[TimeControl "5400+30"]

1. e4 {[%emt 0:00:28]} d5 {[%emt 0:00:31]} 2. exd5 {[%emt 0:00:12]} Nf6 {[%emt 0:00:05]} 3. d4 {[%emt 0:02:14]} Nxd5 {[%emt 0:00:07]} 4. c4 {[%emt 0:02:56]} Nb6 {[%emt 0:02:19]} 5. Nc3 {[%emt 0:04:11]} e5 {[%emt 0:01:23]} 6. dxe5 {[%emt 0:10:30]} Qxd1+ {[%emt 0:00:46]} 7. Kxd1 {[%emt 0:01:42]} Be6 {[%emt 0:01:16]} 8. b3 {[%emt 0:02:06]} Nc6 {[%emt 0:00:22]} 9. Nf3 {[%emt 0:01:08]} O-O-O+ {[%emt 0:01:58]} 10. Kc2 {[%emt 0:03:55]} Bc5 {[%emt 0:22:25]} 11. Be3 {[%emt 0:05:56]} Bf5+ {[%emt 0:09:16]} 12. Kb2 {[%emt 0:00:32]} Bxe3 {[%emt 0:01:50]} 13. fxe3 {[%emt 0:00:07]} Bg4 {[%emt 0:03:14]} 14. Rd1 {[%emt 0:08:08]} Rxd1 {[%emt 0:08:47]} 15. Nxd1 {[%emt 0:01:05]} Rd8 {[%emt 0:10:26]} 16. Be2 {[%emt 0:06:32]} Nxe5 {[%emt 0:14:28]} 17. Kc3 {[%emt 0:03:14]} Nbd7 {[%emt 0:03:34]} 18. Nf2 {[%emt 0:02:17]} f6 {[%emt 0:02:53]} 19. h3 {[%emt 0:02:06]} Nxf3 {[%emt 0:01:54]} 20. Nxg4 {[%emt 0:09:49]} Ng5 {[%emt 0:01:22]} 21. Bd3 {[%emt 0:03:38]} Re8 {[%emt 0:04:29]} 22. Re1 {[%emt 0:05:58]} Ne4+ {[%emt 0:01:22]} 23. Bxe4 {[%emt 0:01:50]} Rxe4 {[%emt 0:00:05]} 24. Nf2 {[%emt 0:01:17]} Re7 {[%emt 0:00:08]} 25. Nd3 {[%emt 0:00:30]} Ne5 {[%emt 0:01:18]} 26. Nf4 {[%emt 0:00:57]} c6 {[%emt 0:00:09]} 27. b4 {[%emt 0:04:24]} Ng6 {[%emt 0:01:48]} 28. Nxg6 {[%emt 0:03:51]} hxg6 {[%emt 0:00:06]} 29. Kd3 {[%emt 0:00:53]} Kc7 {[%emt 0:00:23]} 30. a4 {[%emt 0:00:45]} Kd6 {[%emt 0:02:49]} 31. Kd4 {[%emt 0:02:54]} c5+ 32. bxc5+ Kc6 33. Rb1 Rd7+ 34. Ke4 Kxc5 1/2-1/2

[Event "DMP-III LIGA Senior PK 2020"]
[Site "Bystre"]
[Date "2020.07.09"]
[Round "2.26"]
[White "Dobrzanski, Krzysztof"]
[Black "Marciniak, Leonard"]
[Result "0-1"]
[ECO "D04"]
[WhiteElo "1722"]
[BlackElo "1672"]
[Annotator "NA"]
[PlyCount "104"]
[EventDate "2020.07.05"]
[EventType "team-tourn"]
[EventCountry "POL"]
[SourceTitle "playchess.com"]
[Source "ChessBase"]
[SourceQuality "1"]
[TimeControl "5400+30"]

1. d4 {[%emt 0:00:00]} Nf6 {[%emt 0:00:00]} 2. Nf3 {[%emt 0:00:05]} d5 {[%emt 0:02:25]} 3. e3 {[%emt 0:00:27]} c5 {[%emt 0:00:27]} 4. c3 {[%emt 0:00:19]} cxd4 {[%emt 0:03:35]} 5. exd4 {[%emt 0:00:12]} Bg4 {[%emt 0:02:46]} 6. Bd3 {[%emt 0:02:16]} e6 {[%emt 0:00:46]} 7. Nbd2 {[%emt 0:00:37]} Nc6 {[%emt 0:00:40]} 8. O-O {[%emt 0:00:51]} Be7 {[%emt 0:01:45]} 9. Qa4 {[%emt 0:07:01]} O-O {[%emt 0:01:39]} 10. Ne5 {[%emt 0:02:21]} Qc7 {[%emt 0:02:25]} 11. Nxg4 {[%emt 0:08:05]} Nxg4 {[%emt 0:00:02]} 12. Nf3 {[%emt 0:00:37]} Bd6 {[%emt 0:05:42]} 13. h3 {[%emt 0:03:10]} Nh2 {[%emt 0:02:15]} 14. Nxh2 {[%emt 0:01:32]} Bxh2+ {[%emt 0:00:51]} 15. Kh1 {[%emt 0:00:03]} Bf4 {[%emt 0:04:11]} 16. Qc2 {[%emt 0:01:15]} g6 {[%emt 0:00:15]} 17. Qe2 {[%emt 0:03:17]} a6 {[%emt 0:09:11]} 18. Qg4 {[%emt 0:02:33]} Bxc1 {[%emt 0:01:04]} 19. Raxc1 {[%emt 0:00:47]} Ne7 {[%emt 0:10:06]} 20. Qg5 {[%emt 0:03:40]} Qd7 {[%emt 0:02:38]} 21. Rfe1 {[%emt 0:03:06]} Rae8 {[%emt 0:05:20]} 22. Re2 {[%emt 0:10:37]} Nf5 {[%emt 0:08:05]} 23. Rce1 {[%emt 0:03:48]} Nd6 {[%emt 0:03:28]} 24. h4 {[%emt 0:05:31]} Qd8 {[%emt 0:03:16]} 25. Qxd8 {[%emt 0:01:39]} Rxd8 {[%emt 0:00:02]} 26. Kg1 {[%emt 0:00:36]} Kg7 {[%emt 0:03:06]} 27. g3 {[%emt 0:00:52]} h5 {[%emt 0:00:27]} 28. Kg2 {[%emt 0:00:30]} b5 {[%emt 0:03:34]} 29. Rc2 {[%emt 0:08:45]} Rc8 {[%emt 0:01:05]} 30. Rec1 {[%emt 0:01:06]} Rc6 {[%emt 0:00:33]} 31. Kf3 {[%emt 0:00:50]} Rfc8 {[%emt 0:03:44]} 32. Ke2 {[%emt 0:01:25]} f6 {[%emt 0:04:04]} 33. Kd2 {[%emt 0:01:47]} e5 {[%emt 0:01:12]} 34. f3 {[%emt 0:06:12]} e4 {[%emt 0:01:15]} 35. fxe4 {[%emt 0:02:01]} dxe4 {[%emt 0:00:02]} 36. Be2 {[%emt 0:00:22]} Nf5 {[%emt 0:06:12]} 37. Rg1 {[%emt 0:01:22]} Nxd4 {[%emt 0:00:08]} 38. Rcc1 {[%emt 0:01:05]} Nxe2 {[%emt 0:01:15]} 39. Kxe2 {[%emt 0:00:08]} Rd6 {[%emt 0:01:20]} 40. Rgd1 {[%emt 0:06:01]} Rcd8 {[%emt 0:00:31]} 41. Rxd6 {[%emt 0:00:26]} Rxd6 {[%emt 0:00:06]} 42. c4 {[%emt 0:00:15]} bxc4 {[%emt 0:00:44]} 43. Rxc4 {[%emt 0:00:11]} f5 {[%emt 0:00:12]} 44. Rc3 {[%emt 0:01:23]} Kf6 {[%emt 0:00:24]} 45. b4 {[%emt 0:00:23]} g5 {[%emt 0:00:47]} 46. a4 {[%emt 0:00:22]} Rb6 {[%emt 0:01:08]} 47. Rc5 {[%emt 0:02:01]} gxh4 {[%emt 0:00:30]} 48. gxh4 {[%emt 0:00:07]} Rxb4 {[%emt 0:01:36]} 49. Rc6+ {[%emt 0:00:05]} Ke5 {[%emt 0:00:09]} 50. Rxa6 {[%emt 0:00:05]} Rb2+ {[%emt 0:00:31]} 51. Ke1 {[%emt 0:00:43]} Kf4 {[%emt 0:01:42]} 52. a5 {[%emt 0:00:39]} Ke3 {[%emt 0:00:48]} 0-1

[Event "DMP-III LIGA Senior PK 2020"]
[Site "Bystre"]
[Date "2020.07.09"]
[Round "2.27"]
[White "Klok, Kacper"]
[Black "Palacki, Rafal"]
[Result "0-1"]
[ECO "E21"]
[WhiteElo "1463"]
[BlackElo "1755"]
[Annotator "NA"]
[PlyCount "50"]
[EventDate "2020.07.05"]
[EventType "team-tourn"]
[EventCountry "POL"]
[SourceTitle "playchess.com"]
[Source "ChessBase"]
[SourceQuality "1"]
[TimeControl "5400+30"]

1. d4 {[%emt 0:00:00]} Nf6 {[%emt 0:00:00]} 2. c4 {[%emt 0:01:11]} e6 {[%emt 0:00:22]} 3. Nc3 {[%emt 0:02:37]} Bb4 {[%emt 0:00:08]} 4. Nf3 {[%emt 0:00:17]} d5 {[%emt 0:01:21]} 5. Bg5 {[%emt 0:02:03]} Nbd7 {[%emt 0:03:36]} 6. e3 {[%emt 0:02:45]} O-O {[%emt 0:02:30]} 7. Bd3 {[%emt 0:02:55]} dxc4 {[%emt 0:03:26]} 8. Bxc4 {[%emt 0:00:22]} c5 {[%emt 0:00:16]} 9. Qc2 {[%emt 0:01:14]} Qa5 {[%emt 0:09:51]} 10. Bd3 {[%emt 0:08:39]} h6 {[%emt 0:09:53]} 11. Bxf6 {[%emt 0:14:33]} Nxf6 {[%emt 0:01:25]} 12. O-O {[%emt 0:20:34]} cxd4 {[%emt 0:03:19]} 13. exd4 {[%emt 0:01:27]} Bd7 {[%emt 0:01:38]} 14. a3 {[%emt 0:08:38]} Be7 {[%emt 0:07:11]} 15. Ne5 {[%emt 0:01:39]} Rac8 {[%emt 0:03:42]} 16. Qe2 {[%emt 0:01:25]} Rfd8 {[%emt 0:03:13]} 17. Rac1 {[%emt 0:00:42]} Bc6 {[%emt 0:03:08]} 18. Rfd1 {[%emt 0:01:56]} Ba4 {[%emt 0:07:54]} 19. Re1 {[%emt 0:00:14]} Bb3 {[%emt 0:09:58]} 20. Nc4 {[%emt 0:05:09]} Qg5 {[%emt 0:05:39]} 21. Nd2 {[%emt 0:02:07]} Bd5 {[%emt 0:02:13]} 22. Nde4 {[%emt 0:05:24]} Bxe4 {[%emt 0:05:37]} 23. Nxe4 {[%emt 0:00:10]} Qxc1 {[%emt 0:00:33]} 24. Nxf6+ {[%emt 0:00:22]} Bxf6 {[%emt 0:00:28]} 25. Qe4 {[%emt 0:00:08]} Qd2 {[%emt 0:01:28]} 0-1